bitfinex/quotes_SOLUSD_20250622
["timestamp","ask_amount","ask_price","bid_price","bid_amount"]
[1750558264391,10.7,134.67,134.64,33.35890267]
[1750558264603,25.93168937,134.68,134.64,25.99524657]
[1750558264968,25.93168937,134.67,134.64,7.4272133]
[1750558265170,37.2,134.7,134.64,7.4272133]
[1750558265703,25.93168937,134.67,134.64,7.4272133]
[1750558265868,37.2,134.7,134.64,7.4272133]
[1750558266071,25.93168937,134.67,134.63,7.42776498]
[1750558266800,26.0,134.71,134.63,25.99717744]
[1750558266983,25.93168937,134.67,134.63,7.42776498]
[1750558267500,25.93168937,134.69,134.64,25.93168937]
[1750558268285,25.93168937,134.69,134.65,7.42666171]
[1750558268801,63.22,134.72,134.65,7.42666171]
[1750558269003,25.93168937,134.69,134.65,7.42666171]
[1750558269506,25.93168937,134.67,134.65,7.42666171]
[1750558269713,0.5,134.68,134.65,7.42666171]
[1750558269885,26.43168937,134.68,134.65,7.42666171]
[1750558270082,25.93168937,134.66,134.63,7.42776498]
[1750558270414,25.93168937,134.67,134.62,51.93001748]
[1750558271104,25.93168937,134.68,134.63,25.93168937]
[1750558271317,25.93168937,134.69,134.62,32.08212811]
[1750558271617,25.93168937,134.69,134.64,25.93168937]
[1750558271817,63.22,134.72,134.66,25.93168937]
[1750558272022,25.93168937,134.71,134.66,25.93168937]
[1750558272199,26.0,134.72,134.62,87.87336068]
[1750558272200,25.93168937,134.7,134.65,25.93168937]
[1750558272406,25.93168937,134.7,134.66,7.4261102]
[1750558272906,10.7,134.73,134.66,33.35779957]
[1750558272907,25.93168937,134.71,134.66,33.35779957]
[1750558273303,10.7,134.73,134.66,33.35779957]
[1750558273304,10.7,134.73,134.68,25.93168937]
[1750558273528,10.7,134.73,134.7,25.93168937]
[1750558273713,36.63168937,134.73,134.66,64.64873671]
[1750558273908,36.63168937,134.73,134.69,25.93168937]
[1750558274313,36.63168937,134.73,134.68,25.93168937]
[1750558274513,25.93168937,134.72,134.69,7.42445615]
[1750558274825,25.93168937,134.72,134.62,6.0838]
[1750558274826,25.93168937,134.7,134.62,6.0838]
[1750558275012,25.93168937,134.65,134.62,6.0838]
[1750558275332,25.93168937,134.65,134.63,7.42776498]
[1750558275707,62.98,134.71,134.63,7.42776498]
[1750558275918,25.93168937,134.65,134.63,7.42776498]
[1750558276413,25.93168937,134.64,134.62,7.428222]
[1750558276738,25.93168937,134.64,134.6,33.36110987]
[1750558276904,25.93168937,134.64,134.6,51.93466113]
[1750558277104,25.93168937,134.64,134.6,26.00297176]
[1750558277439,25.93168937,134.62,134.6,26.00297176]
[1750558277601,25.93168937,134.62,134.6,7.4294205]
[1750558278227,25.93168937,134.63,134.6,7.4294205]
[1750558278620,62.9,134.67,134.59,26.00490377]
[1750558278825,25.93168937,134.64,134.59,51.93659314]
[1750558279129,25.93168937,134.64,134.59,26.00490377]
[1750558279343,25.93168937,134.64,134.59,51.93659314]
[1750558280012,25.93168937,134.64,134.61,7.42886858]
[1750558280817,10.7,134.73,134.61,7.42886858]
[1750558280818,13.6106,134.74,134.63,25.93168937]
[1750558281047,10.78,134.71,134.64,25.93168937]
[1750558281222,25.93168937,134.69,134.64,25.93168937]
[1750558281419,25.93168937,134.67,134.61,26.00104003]
[1750558281626,10.78,134.71,134.62,25.93168937]
[1750558281627,36.78,134.71,134.62,25.93168937]
[1750558281840,25.93168937,134.67,134.62,25.93168937]
[1750558282129,25.93168937,134.66,134.61,18.57217145]
[1750558282340,25.93168937,134.66,134.61,44.50386082]
[1750558282644,25.93168937,134.66,134.61,18.57217145]
[1750558282945,25.93168937,134.65,134.61,44.50386082]
[1750558283450,26.0,134.69,134.61,44.50386082]
[1750558283827,25.93168937,134.66,134.61,44.50386082]
[1750558284027,25.93168937,134.67,134.62,25.93168937]
[1750558284254,25.93168937,134.67,134.61,26.00104003]
[1750558284553,25.93168937,134.62,134.61,7.42886858]
[1750558284721,26.0,134.67,134.61,7.42886858]
[1750558284927,62.74,134.67,134.61,7.42886858]
[1750558285126,25.93168937,134.65,134.61,26.00104003]
[1750558285350,25.93168937,134.64,134.61,26.00104003]
[1750558285841,25.93168937,134.65,134.61,26.00104003]
[1750558286054,36.74,134.67,134.62,25.93168937]
[1750558286244,62.67168937,134.67,134.62,25.93168937]
[1750558286425,25.93168937,134.66,134.62,25.93168937]
[1750558286624,25.93168937,134.66,134.61,51.9327294]
[1750558287450,25.93168937,134.66,134.62,25.93168937]
[1750558287751,26.0,134.7,134.62,25.93168937]
[1750558287920,25.93168937,134.71,134.62,18.64964886]
[1750558288125,36.71168937,134.75,134.62,18.64964886]
[1750558288346,36.71168937,134.75,134.61,18.57217145]
[1750558288347,26.0,134.71,134.61,18.57217145]
[1750558288521,25.93168937,134.69,134.64,25.93168937]
[1750558288721,10.78,134.75,134.67,25.93168937]
[1750558288918,47.96,134.75,134.68,25.93168937]
[1750558289351,47.96,134.75,134.7,51.91535677]
[1750558289352,36.71168937,134.75,134.7,51.91535677]
[1750558289851,10.78,134.75,134.7,25.9836674]
[1750558290048,25.93168937,134.74,134.7,51.91535677]
[1750558290253,36.71168937,134.75,134.7,51.91535677]
[1750558290550,25.93168937,134.74,134.7,51.91535677]
[1750558290748,10.78,134.75,134.7,51.91535677]
[1750558290947,25.93168937,134.74,134.7,25.9836674]
[1750558291136,10.78,134.75,134.7,25.9836674]
[1750558291446,25.93168937,134.75,134.7,51.91535677]
[1750558291647,25.93168937,134.76,134.71,25.93168937]
[1750558291965,25.93168937,134.76,134.7,25.9836674]
[1750558292163,10.78,134.78,134.72,25.93168937]
[1750558292469,25.93168937,134.78,134.72,1.5889]
[1750558292668,25.93168937,134.77,134.72,27.52058937]
[1750558293028,25.93168937,134.78,134.73,25.93168937]
[1750558293223,48.2,134.79,134.74,25.93168937]
[1750558293455,25.93168937,134.79,134.75,7.42115027]
[1750558293726,25.93168937,134.78,134.75,7.42115027]
[1750558294644,25.93168937,134.76,134.73,7.42225191]
[1750558294837,26.0,134.79,134.73,7.42225191]
[1750558295048,25.93168937,134.76,134.73,7.42225191]
[1750558295657,25.93168937,134.77,134.73,7.42225191]
[1750558296060,25.93168937,134.78,134.74,25.93168937]
[1750558296246,47.78,134.82,134.73,26.07190077]
[1750558296247,26.0,134.81,134.75,25.93168937]
[1750558296565,51.93168937,134.81,134.76,25.93168937]
[1750558296873,10.78,134.82,134.73,25.97788168]
[1750558296874,36.71168937,134.82,134.78,25.93168937]
[1750558297029,36.88,134.86,134.8,25.93168937]
[1750558297360,25.93168937,134.83,134.78,32.33708937]
[1750558297531,36.88,134.86,134.8,7.41839762]
[1750558297731,25.93168937,134.84,134.8,7.41839762]
[1750558298156,62.88,134.86,134.8,7.41839762]
[1750558298454,25.93168937,134.85,134.8,33.35008699]
[1750558298866,10.78,134.87,134.82,25.93168937]
[1750558299057,36.71168937,134.87,134.82,25.93168937]
[1750558299757,25.93168937,134.86,134.82,7.41717511]
[1750558300441,25.93168937,134.84,134.81,1.5326]
[1750558300645,10.78,134.87,134.81,1.5326]
[1750558300848,25.93168937,134.84,134.81,8.95032665]
[1750558301052,18.19455314,134.87,134.78,6.4054]
[1750558301053,25.93168937,134.82,134.78,6.4054]
[1750558301365,26.0,134.85,134.76,1.5756]
[1750558301366,36.76,134.84,134.76,1.5756]
[1750558301573,25.93168937,134.8,134.76,1.5756]
[1750558301742,25.93168937,134.8,134.76,8.99615282]
[1750558302140,25.93168937,134.82,134.77,25.93168937]
[1750558302650,36.76,134.84,134.78,25.93168937]
[1750558302852,25.93168937,134.82,134.78,25.93168937]
[1750558303462,25.93168937,134.82,134.78,7.41949844]
[1750558303838,36.76,134.84,134.78,33.35118781]
[1750558304034,25.93168937,134.82,134.78,7.41949844]
[1750558304857,25.93168937,134.81,134.78,7.41949844]
[1750558305065,10.78,134.87,134.8,25.93168937]
[1750558305261,5.37781763,134.9,134.84,25.93168937]
[1750558305472,25.93168937,134.89,134.85,25.93168937]
[1750558305648,25.93168937,134.89,134.85,7.41512549]
[1750558305846,25.93168937,134.87,134.85,7.41512549]
[1750558306165,26.0,134.9,134.85,7.41512549]
[1750558306759,25.93168937,134.89,134.85,7.41512549]
[1750558307269,26.0,134.9,134.85,7.41512549]
[1750558307861,25.93168937,134.89,134.85,7.41512549]
[1750558308870,25.93168937,134.87,134.85,7.41512549]
[1750558309175,25.93168937,134.86,134.83,7.41674701]
[1750558309362,25.93168937,134.85,134.83,7.41674701]
[1750558309562,70.09299625,134.9,134.83,7.41674701]
[1750558309878,25.93168937,134.86,134.83,7.41674701]
[1750558310380,48.14,134.91,134.85,25.93168937]
[1750558310552,25.93168937,134.9,134.85,27.45248937]
[1750558311178,62.51168937,134.92,134.87,25.93168937]
[1750558311352,25.93168937,134.9,134.85,27.45248937]
[1750558311674,36.58,134.92,134.85,27.45248937]
[1750558311877,36.58,134.92,134.86,7.41509713]
[1750558312058,10.58,134.92,134.87,18.64964886]
[1750558312377,10.58,134.92,134.87,44.58133823]
[1750558312378,25.93168937,134.91,134.87,44.58133823]
[1750558312583,25.93168937,134.97,134.87,44.58133823]
[1750558312584,16.43557606,134.98,134.9,25.93168937]
[1750558312775,16.43557606,134.98,134.92,25.93168937]
[1750558312776,25.93168937,134.96,134.92,25.93168937]
[1750558312993,25.93168937,134.97,134.93,25.93168937]
[1750558313289,10.56,134.98,134.94,25.93168937]
[1750558313885,36.64,135.01,134.96,7.40960284]
[1750558314095,36.64,135.01,134.96,51.86529932]
[1750558314257,62.57168937,135.01,134.96,25.93360995]
[1750558314457,25.93168937,135.01,134.96,51.86529932]
[1750558314658,110.72,135.03,134.96,51.86529932]
[1750558314967,25.93168937,135.03,134.98,44.58133823]
[1750558315150,10.56,135.04,134.98,44.58133823]
[1750558315354,10.56,135.04,134.99,25.93168937]
[1750558315850,36.49168937,135.04,135.0,33.33909677]
[1750558316069,10.56,135.04,135.01,25.93168937]
[1750558316381,25.93168937,135.06,135.01,25.93168937]
[1750558316567,36.56,135.08,135.0,57.98081528]
[1750558316764,36.56,135.08,135.03,25.93168937]
[1750558317079,10.56,135.1,135.04,25.93168937]
[1750558317259,10.56,135.1,135.03,25.93168937]
[1750558317461,25.93168937,135.08,135.03,25.93168937]
[1750558317654,25.93168937,135.07,135.02,46.10213823]
[1750558317877,10.56,135.1,135.03,7.40576168]
[1750558317878,25.93168937,135.05,135.03,7.40576168]
[1750558318063,25.93168937,135.04,135.02,8.9270266]
[1750558318262,51.93168937,135.07,135.02,34.85871597]
[1750558318466,62.5,135.09,135.03,25.93168937]
[1750558318660,25.93168937,135.08,135.04,25.93168937]
[1750558318878,25.93168937,135.09,135.04,25.93168937]
[1750558319053,10.56,135.1,135.04,25.93168937]
[1750558319256,25.93168937,135.09,135.05,25.93168937]
[1750558319465,36.49168937,135.1,135.05,25.93168937]
[1750558319990,10.56,135.1,135.07,33.33525789]
[1750558320160,25.93168937,135.13,135.09,25.93168937]
[1750558320360,48.08,135.15,135.09,25.93168937]
[1750558320586,26.0,135.12,135.05,7.40466493]
[1750558320860,26.0,135.12,134.98,7.40850496]
[1750558320861,51.93168937,135.06,134.98,7.40850496]
[1750558321075,25.93168937,135.08,134.93,25.93168937]
[1750558321076,25.93168937,134.99,134.93,25.93168937]
[1750558321271,25.93168937,134.95,134.92,26.39723277]
[1750558321483,25.93168937,134.95,134.93,7.41125027]
[1750558321786,25.93168937,134.95,134.92,15.27998107]
[1750558321983,25.93168937,134.93,134.88,25.93168937]
[1750558322176,25.93168937,134.92,134.87,7.8682]
[1750558322483,25.93168937,134.93,134.88,25.93168937]
[1750558322783,25.93168937,134.93,134.89,25.93168937]
[1750558323175,25.93168937,134.93,134.87,7.8682]
[1750558323485,36.46,134.95,134.87,1.6398]
[1750558323667,25.93168937,134.91,134.87,1.6398]
[1750558323870,36.46,134.95,134.88,7.41399762]
[1750558324068,25.93168937,134.91,134.88,7.41399762]
[1750558324274,25.93168937,134.9,134.88,7.41399762]
[1750558324480,25.93168937,134.89,134.83,44.58133823]
[1750558324682,25.93168937,134.88,134.83,25.93168937]
[1750558324877,26.0,134.94,134.83,33.34843638]
[1750558324878,25.93168937,134.87,134.83,33.34843638]
[1750558325283,25.93168937,134.87,134.83,7.41674701]
[1750558325463,36.48,134.9,134.83,33.34843638]
[1750558325786,25.93168937,134.84,134.78,33.35118781]
[1750558325992,36.46,134.85,134.78,7.41949844]
[1750558326179,25.93168937,134.84,134.79,25.93168937]
[1750558326486,25.93168937,134.83,134.79,18.64964886]
[1750558326684,25.93168937,134.83,134.78,51.89993391]
[1750558326888,25.93168937,134.82,134.78,51.89993391]
[1750558327071,36.46,134.85,134.79,25.93168937]
[1750558327310,25.93168937,134.82,134.78,25.96824454]
[1750558327972,25.93168937,134.81,134.78,7.41949844]
[1750558328176,25.93168937,134.8,134.78,7.41949844]
[1750558329287,25.93168937,134.81,134.78,7.41949844]
[1750558329591,25.93168937,134.8,134.78,7.41949844]
[1750558329795,26.0,134.84,134.78,7.41949844]
[1750558330107,10.56,134.89,134.83,25.93168937]
[1750558330292,25.93168937,134.86,134.81,25.93168937]
[1750558330600,36.56,134.89,134.79,18.64964886]
[1750558330778,36.56,134.89,134.84,25.93168937]
[1750558330779,47.02,134.89,134.84,25.93168937]
[1750558331099,25.93168937,134.88,134.83,25.93168937]
[1750558331309,25.93168937,134.86,134.81,25.93168937]
[1750558331467,25.93168937,134.87,134.82,25.93168937]
[1750558331906,47.02,134.89,134.83,7.41674701]
[1750558332211,25.93168937,134.84,134.8,7.41839762]
[1750558332387,22.56557734,134.95,134.83,25.93168937]
[1750558332579,25.93168937,134.88,134.81,18.64964886]
[1750558332908,25.93168937,134.88,134.84,25.93168937]
[1750558333104,25.93168937,134.89,134.84,25.93168937]
[1750558333609,25.93168937,134.88,134.85,7.41564701]
[1750558334404,73.02,134.91,134.82,18.54223005]
[1750558334405,25.93168937,134.87,134.84,7.4161119]
[1750558335005,25.93168937,134.9,134.85,25.93168937]
[1750558335386,25.93168937,134.9,134.86,7.41509713]
[1750558336107,72.93168937,134.91,134.86,33.3467865]
[1750558336275,25.93168937,134.9,134.86,7.41509713]
[1750558336907,20.0521822,134.95,134.88,25.93168937]
[1750558337218,10.44,134.95,134.87,18.64964886]
[1750558337385,10.44,134.95,134.91,25.93168937]
[1750558337783,25.93168937,134.97,134.92,25.93168937]
[1750558337976,25.93168937,134.96,134.89,26.0]
[1750558338304,25.93168937,134.96,134.91,25.93168937]
[1750558338602,25.93168937,134.92,134.86,51.88452934]
[1750558338803,25.93168937,134.89,134.86,7.41509713]
[1750558339004,25.93168937,134.88,134.86,7.41509713]
[1750558339214,25.93168937,134.87,134.86,7.41509713]
[1750558339410,25.93168937,134.88,134.86,7.41509713]
[1750558339581,72.78,134.93,134.84,7.41619697]
[1750558339779,25.93168937,134.88,134.84,33.34788634]
[1750558339993,25.93168937,134.88,134.84,7.41619697]
[1750558340609,72.78,134.93,134.84,7.41619697]
[1750558340610,26.0,134.93,134.84,7.41619697]
[1750558340795,25.93168937,134.97,134.92,25.93168937]
[1750558341189,25.93168937,134.96,134.91,25.93168937]
[1750558341393,25.93168937,134.95,134.9,25.93168937]
[1750558341911,25.93168937,134.96,134.91,25.93168937]
[1750558342581,25.93168937,134.96,134.92,7.41179958]
[1750558342998,25.93168937,134.97,134.92,33.34348895]
[1750558343216,10.44,135.0,134.96,25.93168937]
[1750558343383,11.46071202,135.05,134.97,25.93168937]
[1750558343591,25.93168937,135.02,134.97,25.93168937]
[1750558343899,20.07477641,135.06,135.01,25.93168937]
[1750558344218,25.93168937,135.09,135.04,25.93168937]
[1750558344393,25.93168937,135.07,135.02,25.93168937]
[1750558344916,25.93168937,135.09,135.04,25.93168937]
[1750558345094,25.93168937,135.1,135.05,25.93168937]
[1750558345295,51.93168937,135.11,135.06,25.93168937]
[1750558345506,25.93168937,135.11,135.07,25.93168937]
[1750558345814,36.35168937,135.12,135.07,25.93168937]
[1750558346021,25.93168937,135.14,135.09,25.93168937]
[1750558346235,25.93168937,135.13,135.04,18.64964886]
[1750558346538,51.93168937,135.14,135.09,25.93168937]
[1750558346913,25.93168937,135.15,135.11,25.93168937]
[1750558347094,36.06,135.17,135.1,25.90673575]
[1750558347304,25.93168937,135.15,135.11,25.93168937]
[1750558347513,25.93168937,135.17,135.12,25.93168937]
[1750558347714,25.93168937,135.17,135.1,25.90673575]
[1750558347919,25.93168937,135.13,135.1,25.90673575]
[1750558348122,25.93168937,135.14,135.1,25.90673575]
[1750558348423,51.93168937,135.15,135.11,25.93168937]
[1750558348720,26.0,135.15,135.1,25.90673575]
[1750558348927,25.93168937,135.11,135.07,25.91220839]
[1750558349509,26.0,135.14,135.07,51.84389776]
[1750558349857,26.0,135.14,135.1,25.93168937]
[1750558350137,26.0,135.14,135.11,25.93168937]
[1750558350436,26.0,135.14,135.1,25.93168937]
[1750558350730,25.93168937,135.15,135.1,25.93168937]
[1750558351095,25.93168937,135.15,135.07,81.57969985]
[1750558351096,25.93168937,135.17,135.12,25.93168937]
[1750558351303,25.93168937,135.17,135.13,25.93168937]
[1750558351526,62.35168937,135.18,135.13,25.93168937]
[1750558351739,18.64964886,135.23,135.17,25.93168937]
[1750558352029,25.93168937,135.21,135.17,25.93168937]
[1750558352346,94.6,135.24,135.17,25.93168937]
[1750558352544,94.6,135.24,135.12,44.64964886]
[1750558352545,58.5,135.24,135.18,25.93168937]
[1750558352828,26.0,135.23,135.16,25.93168937]
[1750558352995,26.0,135.23,135.14,18.64964886]
[1750558353194,25.93168937,135.18,135.13,25.90098423]
[1750558353412,62.06,135.21,135.13,51.8326736]
[1750558353622,25.93168937,135.19,135.14,25.93168937]
[1750558353930,62.06,135.21,135.14,25.93168937]
[1750558354104,25.93168937,135.19,135.14,25.93168937]
[1750558354518,25.93168937,135.18,135.13,51.8326736]
[1750558354908,25.93168937,135.16,135.13,7.40028121]
[1750558355130,25.93168937,135.14,135.12,7.40082889]
[1750558355306,25.93168937,135.15,135.12,7.40082889]
[1750558355718,26.0,135.18,135.12,7.40082889]
[1750558356028,25.93168937,135.15,135.12,7.40082889]
[1750558356211,25.93168937,135.16,135.12,7.40082889]
[1750558356538,6.67419514,135.27,135.15,25.93168937]
[1750558356710,25.93168937,135.21,135.16,25.93168937]
[1750558356906,25.93168937,135.19,135.13,18.64964886]
[1750558357113,25.93168937,135.19,135.14,25.89906762]
[1750558357316,17.12004051,135.28,135.17,25.93168937]
[1750558357540,25.93168937,135.23,135.18,25.93168937]
[1750558357722,26.0,135.23,135.19,25.93168937]
[1750558357908,84.43168937,135.24,135.19,25.93168937]
[1750558358115,58.5,135.24,135.2,25.93168937]
[1750558358311,58.5,135.24,135.19,25.93168937]
[1750558358515,84.43168937,135.24,135.19,25.93168937]
[1750558358829,58.5,135.24,135.19,25.93168937]
[1750558359041,84.43168937,135.24,135.18,25.89140404]
[1750558359233,84.43168937,135.24,135.19,25.93168937]
[1750558359438,25.93168937,135.23,135.18,25.89140404]
[1750558359749,25.93168937,135.2,135.18,7.39754401]
[1750558360042,25.93168937,135.2,135.15,18.49747446]
[1750558360043,61.88,135.21,135.16,7.39863865]
[1750558360244,61.88,135.21,135.16,25.89523527]
[1750558360446,51.93168937,135.21,135.17,25.93168937]
[1750558360641,26.0,135.21,135.17,25.93168937]
[1750558361034,51.93168937,135.23,135.19,7.39699681]
[1750558361441,94.38,135.24,135.19,7.39699681]
[1750558361641,25.93168937,135.23,135.19,51.82117822]
[1750558361843,46.3,135.24,135.19,25.88948885]
[1750558362041,25.93168937,135.22,135.19,7.39699681]
[1750558362248,25.93168937,135.2,135.19,7.39699681]
[1750558362633,25.93168937,135.21,135.19,7.39699681]
[1750558362827,46.3,135.24,135.19,7.39699681]
[1750558363127,46.3,135.24,135.18,25.89140404]
[1750558363338,46.3,135.24,135.18,51.82309341]
[1750558363518,25.93168937,135.23,135.18,51.82309341]
[1750558363723,25.93168937,135.22,135.18,25.89140404]
[1750558363961,26.0,135.22,135.18,7.39754401]
[1750558364121,51.93168937,135.19,135.16,7.39863865]
[1750558364315,25.93168937,135.17,135.13,7.40028121]
[1750558364544,25.93168937,135.16,135.13,7.40028121]
[1750558365149,35.78,135.18,135.13,7.40028121]
[1750558365333,25.93168937,135.17,135.13,33.33197058]
[1750558365661,26.0,135.19,135.14,25.93168937]
[1750558365857,26.0,135.19,135.15,25.93168937]
[1750558366023,25.93168937,135.2,135.15,25.93168937]
[1750558366526,25.93168937,135.19,135.14,25.93168937]
[1750558366939,25.93168937,135.2,135.15,25.93168937]
[1750558367140,25.93168937,135.19,135.15,25.93168937]
[1750558367343,25.93168937,135.19,135.14,25.93168937]
[1750558367756,25.93168937,135.17,135.13,18.50070302]
[1750558367953,26.0,135.18,135.13,18.50070302]
[1750558368125,25.93168937,135.17,135.13,18.50070302]
[1750558368325,26.0,135.18,135.12,7.40082889]
[1750558368326,25.93168937,135.16,135.12,7.40082889]
[1750558368534,25.93168937,135.17,135.12,7.40082889]
[1750558368746,25.93168937,135.16,135.12,7.40082889]
[1750558369438,25.93168937,135.16,135.12,25.90290112]
[1750558369635,26.0,135.18,135.12,51.83459049]
[1750558369944,35.76,135.21,135.12,25.90290112]
[1750558369945,25.93168937,135.19,135.12,25.90290112]
[1750558370136,25.93168937,135.19,135.14,25.93168937]
[1750558370652,25.93168937,135.18,135.13,25.93168937]
[1750558370825,25.93168937,135.19,135.14,25.93168937]
[1750558371221,25.93168937,135.18,135.13,25.93168937]
[1750558371427,25.93168937,135.18,135.12,25.90290112]
[1750558371735,26.0,135.2,135.14,7.3997336]
[1750558371935,25.93168937,135.18,135.14,7.3997336]
[1750558372145,25.93168937,135.19,135.14,51.83075699]
[1750558372376,25.93168937,135.17,135.14,7.3997336]
[1750558372848,25.93168937,135.18,135.14,7.3997336]
[1750558373643,25.93168937,135.19,135.14,33.33142297]
[1750558373830,25.93168937,135.19,135.14,51.83075699]
[1750558374340,26.0,135.2,135.15,25.93168937]
[1750558374536,51.93168937,135.2,135.15,25.93168937]
[1750558375169,26.0,135.2,135.16,25.93168937]
[1750558375462,51.93168937,135.2,135.16,25.93168937]
[1750558375663,25.93168937,135.2,135.14,18.49933402]
[1750558375856,35.48,135.23,135.17,25.93168937]
[1750558376038,25.93168937,135.23,135.18,25.93168937]
[1750558376860,25.93168937,135.22,135.17,25.93168937]
[1750558377158,71.9,135.24,135.17,25.93168937]
[1750558377379,36.35168937,135.24,135.19,25.93168937]
[1750558377563,10.42,135.24,135.19,1.5466]
[1750558377728,10.42,135.24,135.2,51.81926333]
[1750558378662,10.42,135.24,135.21,25.93168937]
[1750558378832,10.42,135.24,135.2,25.88757396]
[1750558379033,10.42,135.24,135.2,51.81926333]
[1750558379356,10.42,135.24,135.21,25.93168937]
[1750558379763,10.42,135.24,135.22,7.39535571]
[1750558380651,51.93168937,135.24,135.22,7.39535571]
[1750558380851,25.93168937,135.23,135.2,7.3964497]
[1750558381052,25.93168937,135.21,135.2,7.3964497]
[1750558381359,25.93168937,135.21,135.18,7.39754401]
[1750558381557,18.64964886,135.22,135.18,7.39754401]
[1750558381860,35.28,135.24,135.15,62.89308174]
[1750558382063,61.21168937,135.24,135.2,25.93168937]
[1750558382379,16.67419514,135.3,135.23,25.93168937]
[1750558382574,10.0,135.3,135.24,25.93168937]
[1750558382868,35.93168937,135.3,135.25,25.93168937]
[1750558383073,35.93168937,135.3,135.27,25.93168937]
[1750558383074,10.0,135.3,135.27,25.93168937]
[1750558383251,5.37431513,135.32,135.28,25.93168937]
[1750558383440,1.6158636,135.34,135.23,46.28624886]
[1750558383441,27.54755297,135.34,135.3,25.93168937]
[1750558383661,25.93168937,135.32,135.27,33.32431153]
[1750558383987,6.99346585,135.34,135.29,25.93168937]
[1750558384178,25.93168937,135.33,135.29,25.93168937]
[1750558384363,1.6158636,135.34,135.27,25.87417756]
[1750558384566,25.93168937,135.33,135.28,25.93168937]
[1750558384770,25.93168937,135.31,135.24,7.39426205]
[1750558384978,35.34,135.31,135.24,7.39426205]
[1750558385197,40.73697808,135.31,135.25,25.93168937]
[1750558385495,25.93168937,135.3,135.25,25.93168937]
[1750558385791,25.93168937,135.3,135.26,7.39316871]
[1750558385995,25.93168937,135.29,135.26,7.39316871]
[1750558387289,25.93168937,135.3,135.26,7.39316871]
[1750558387885,25.93168937,135.31,135.26,51.80777986]
[1750558388269,5.4210026,135.3,135.26,51.80777986]
[1750558388473,25.93168937,135.31,135.26,7.39316871]
[1750558388653,25.93168937,135.31,135.23,20.12280285]
[1750558388654,25.93168937,135.27,135.24,7.39426205]
[1750558388854,26.0,135.3,135.24,33.32595142]
[1750558389079,5.41728437,135.29,135.25,25.93168937]
[1750558389265,5.41728437,135.28,135.25,25.93168937]
[1750558389471,51.93168937,135.3,135.25,25.93168937]
[1750558389783,51.93168937,135.3,135.24,7.39426205]
[1750558389784,25.93168937,135.27,135.24,7.39426205]
[1750558390279,25.93168937,135.28,135.24,7.39426205]
[1750558390462,5.41933297,135.27,135.24,7.39426205]
[1750558390663,25.93168937,135.28,135.24,7.39426205]
[1750558390882,25.93168937,135.3,135.25,25.93168937]
[1750558391083,5.41800774,135.29,135.25,25.93168937]
[1750558391284,5.41800774,135.28,135.25,25.93168937]
[1750558391486,6.67419514,135.32,135.28,18.64964886]
[1750558391790,6.67419514,135.35,135.31,25.93168937]
[1750558391957,5.41801629,135.33,135.31,25.93168937]
[1750558392162,35.93168937,135.36,135.31,25.93168937]
[1750558392391,35.93168937,135.36,135.32,25.93168937]
[1750558392687,10.0,135.36,135.33,25.93168937]
[1750558392990,10.0,135.36,135.33,33.32103393]
[1750558393660,25.93168937,135.39,135.33,51.97068279]
[1750558393856,5.40899862,135.38,135.33,51.97068279]
[1750558394061,25.93168937,135.39,135.33,51.97068279]
[1750558394286,5.41052341,135.38,135.33,51.97068279]
[1750558394490,51.93168937,135.39,135.33,51.97068279]
[1750558394680,25.93168937,135.36,135.33,7.38934456]
[1750558394858,25.93168937,135.36,135.32,8.94231808]
[1750558395062,31.33701861,135.33,135.28,7.39157294]
[1750558395283,25.93168937,135.29,135.26,7.39316871]
[1750558395789,5.40532924,135.32,135.26,7.39316871]
[1750558395995,25.93168937,135.3,135.26,33.32485808]
[1750558396168,25.93168937,135.29,135.26,7.39316871]
[1750558396371,25.93168937,135.3,135.26,33.32485808]
[1750558396870,25.93168937,135.32,135.27,25.93168937]
[1750558397099,25.93168937,135.32,135.28,7.39207569]
[1750558397402,35.08,135.33,135.29,25.93168937]
[1750558397595,27.54755297,135.34,135.3,25.93168937]
[1750558398709,27.54755297,135.34,135.29,44.58133823]
[1750558399509,27.54755297,135.34,135.27,7.39262216]
[1750558399510,25.93168937,135.3,135.27,7.39262216]
[1750558399920,25.93168937,135.31,135.27,7.39262216]
[1750558400212,25.93168937,135.3,135.27,7.39262216]
[1750558400376,25.93168937,135.31,135.27,7.39262216]
[1750558400576,25.93168937,135.32,135.27,33.32431153]
[1750558401000,25.93168937,135.31,135.27,33.32431153]
[1750558401405,35.04,135.33,135.28,25.93168937]
[1750558401606,35.04,135.33,135.29,25.93168937]
[1750558401807,27.54755297,135.34,135.3,25.93168937]
[1750558402188,1.6158636,135.34,135.3,25.93168937]
[1750558402698,27.54755297,135.34,135.31,7.39043677]